[Event "AZE-ch Women 2019"]
[Site "Baku"]
[Date "2019.02.12"]
[Round "9.8"]
[White "Allahverdiyeva, Ayan"]
[Black "Jafarova, Aysel"]
[Result "1-0"]
[ECO "C04"]
[WhiteElo "2051"]
[BlackElo "1376"]
[Annotator "NA"]
[PlyCount "59"]
[EventDate "2019.02.04"]
[EventType "swiss"]
[EventCountry "AZE"]
[SourceTitle "playchess.com"]
[Source "ChessBase"]
[SourceQuality "1"]
[TimeControl "40/5400+30:1800+30"]

1. e4 {[%emt 0:01:13]} e6 {[%emt 0:00:00]} 2. d4 {[%emt 0:00:19]} d5 {[%emt 0:00:00]} 3. Nd2 {[%emt 0:00:04]} Nc6 {[%emt 0:00:00]} 4. Ngf3 {[%emt 0:01:24]} Nf6 {[%emt 0:00:00]} 5. Bd3 {[%emt 0:01:07]} Nb4 {[%emt 0:00:07]} 6. Qe2 {[%emt 0:01:56]} Nxd3+ {[%emt 0:00:23]} 7. Qxd3 {[%emt 0:00:15]} Be7 {[%emt 0:01:46]} 8. O-O {[%emt 0:01:18]} a5 {[%emt 0:01:19]} 9. Re1 {[%emt 0:09:36]} O-O {[%emt 0:01:12]} 10. Ne5 {[%emt 0:02:44]} Nd7 {[%emt 0:06:53]} 11. Ndf3 $11 {[%emt 0:17:01]} f6 {[%emt 0:05:18]} 12. Ng4 {[%emt 0:02:05]} b6 {[%emt 0:02:01]} 13. exd5 {[%emt 0:00:38]} exd5 {[%emt 0:00:50]} 14. Ne3 {[%emt 0:01:13]} Ba6 {[%emt 0:05:23]} 15. Qf5 {[%emt 0:00:51]} Re8 {[%emt 0:12:53]} 16. Nxd5 {[%emt 0:05:33]} Bd6 {[%emt 0:04:30]} 17. Rxe8+ {[%emt 0:00:20]} Qxe8 {[%emt 0:00:07]} 18. Bf4 {[%emt 0:00:10]} g6 {[%emt 0:08:48]} 19. Nxf6+ {[%emt 0:01:56]} Nxf6 {[%emt 0:00:07]} 20. Qxf6 {[%emt 0:00:06]} Be7 {[%emt 0:06:04]} 21. Qe5 {[%emt 0:02:25]} Bd6 {[%emt 0:00:45]} 22. Qd5+ {[%emt 0:00:15]} Kg7 {[%emt 0:05:13]} 23. Re1 {[%emt 0:05:31]} Qg8 {[%emt 0:03:12]} 24. Be5+ {[%emt 0:00:31]} Kh6 {[%emt 0:06:23]} 25. Qe4 {[%emt 0:01:10]} Bxe5 {[%emt 0:02:08]} 26. Qxe5 {[%emt 0:01:04]} g5 {[%emt 0:03:20]} 27. h4 {[%emt 0:02:39]} gxh4 {[%emt 0:04:56]} 28. Qf4+ {[%emt 0:00:07]} Kg6 {[%emt 0:01:06]} 29. Qg5+ {[%emt 0:00:06]} Kf7 {[%emt 0:01:00]} 30. Re7+ {[%emt 0:00:05]} 1-0